bitfinex/quotes_BTCUSD_20250829
["timestamp","ask_amount","ask_price","bid_price","bid_amount"]
[1756430227498,1.53016614,112060.0,112050.0,0.002]
[1756430227807,1.53016614,112060.0,112050.0,0.17849174]
[1756430227808,1.03333614,112060.0,112050.0,0.17849174]
[1756430228033,0.70678844,112060.0,112050.0,0.17849174]
[1756430228235,0.70678844,112060.0,112050.0,0.18362174]
[1756430228236,0.35647537,112060.0,112050.0,0.18362174]
[1756430228447,0.91559988,112060.0,112050.0,0.17849174]
[1756430228880,0.89912451,112060.0,112050.0,0.18048174]
[1756430229541,0.55404144,112060.0,112050.0,0.18048174]
[1756430229758,0.89912451,112060.0,112050.0,0.18048174]
[1756430229930,0.85106307,112060.0,112050.0,0.18048174]
[1756430230155,0.51106307,112060.0,112050.0,0.18048174]
[1756430230361,0.18244857,112060.0,112050.0,0.18048174]
[1756430230481,0.527532,112060.0,112050.0,0.18048174]
[1756430230686,0.50900307,112060.0,112050.0,0.18562174]
[1756430232329,0.51094307,112060.0,112050.0,0.18248174]
[1756430232580,0.51094307,112060.0,112050.0,0.18049174]
[1756430232998,0.51094307,112060.0,112050.0,0.002]
[1756430232999,0.91747996,112060.0,112050.0,0.002]
[1756430233433,5.86405196,112060.0,112050.0,0.002]
[1756430233662,5.91493754,112060.0,112050.0,0.002]
[1756430233872,5.89595768,112060.0,112050.0,0.002]
[1756430234074,5.17388582,112060.0,112050.0,0.002]
[1756430234286,5.86405196,112060.0,112050.0,0.001]
[1756430234519,5.86405196,112060.0,112040.0,0.17870726]
[1756430234705,0.34508307,112050.0,112040.0,0.17870726]
[1756430234840,5.11723507,112050.0,112040.0,0.18069726]
[1756430235039,0.85066307,112050.0,112040.0,0.18069726]
[1756430235244,1.19570614,112050.0,112040.0,0.18069726]
[1756430235451,1.03016614,112050.0,112040.0,0.18383726]
[1756430235670,0.50348,112050.0,112040.0,0.18383726]
[1756430235866,0.84856307,112050.0,112040.0,0.18383726]
[1756430236335,0.85062307,112050.0,112040.0,0.18069726]
[1756430236552,0.85062307,112050.0,112040.0,0.18383726]
[1756430236666,0.50554,112050.0,112040.0,0.18069726]
[1756430236872,0.85062307,112050.0,112040.0,0.18069726]
[1756430237078,0.84856307,112050.0,112040.0,0.18383726]
[1756430237591,0.85062307,112050.0,112040.0,0.18383726]
[1756430237830,0.85062307,112050.0,112040.0,0.18583726]
[1756430238286,0.88870761,112050.0,112040.0,0.18583726]
[1756430238474,0.90517128,112050.0,112040.0,0.18269726]
[1756430238904,0.51994367,112050.0,112040.0,0.18579726]
[1756430239102,0.90311128,112050.0,112040.0,0.18579726]
[1756430239366,0.90509128,112050.0,112040.0,0.18579726]
[1756430239586,0.90509128,112050.0,112040.0,0.18269726]
[1756430240157,0.92405563,112050.0,112040.0,0.18269726]
[1756430240379,0.92405563,112050.0,112040.0,0.18579726]
[1756430240581,0.92405563,112050.0,112040.0,0.18269726]
[1756430240745,0.92708563,112050.0,112040.0,0.18070726]
[1756430240952,1.01538195,112050.0,112040.0,0.18070726]
[1756430241255,1.01537749,112050.0,112040.0,0.18070726]
[1756430242084,0.92708117,112050.0,112040.0,0.17970726]
[1756430242314,0.92708117,112050.0,112040.0,0.17870726]
[1756430242544,0.95898689,112050.0,112040.0,0.17870726]
[1756430242692,0.95898689,112050.0,112040.0,0.0002]
[1756430243097,0.95898689,112050.0,112040.0,0.0012]
[1756430243300,1.05345537,112050.0,112040.0,0.18070767]
[1756430243659,1.05345537,112050.0,112040.0,0.0012]
[1756430243845,1.05345537,112050.0,112040.0,0.17870767]
[1756430244134,1.02154965,112050.0,112040.0,0.17870767]
[1756430244511,1.02154965,112050.0,112040.0,0.0002]
[1756430245095,5.65757261,112050.0,112040.0,0.0002]
[1756430245297,6.07282624,112050.0,112040.0,0.0002]
[1756430245502,6.1045612,112050.0,112040.0,0.0002]
[1756430245713,6.07247518,112050.0,112040.0,0.0002]
[1756430245920,6.1372007,112050.0,112040.0,0.0002]
[1756430246173,6.10936623,112050.0,112040.0,0.0002]
[1756430246369,6.07991527,112050.0,112040.0,0.0002]
[1756430246570,6.11036623,112050.0,112040.0,0.0002]
[1756430246773,6.06467904,112050.0,112040.0,0.0002]
[1756430246983,6.06367904,112050.0,112040.0,0.0002]
[1756430247186,6.06267904,112050.0,112040.0,0.0002]
[1756430247387,6.06467904,112050.0,112040.0,0.0002]
[1756430247984,5.90119904,112050.0,112040.0,0.0002]
[1756430248190,6.06363904,112050.0,112040.0,0.0002]
[1756430248411,6.12737514,112050.0,112040.0,0.0002]
[1756430248778,6.00463331,112050.0,112040.0,0.0002]
[1756430248965,5.95424353,112050.0,112040.0,0.0002]
[1756430249169,6.02822721,112050.0,112040.0,0.0002]
[1756430249380,6.02822721,112050.0,112030.0,0.00065802]
[1756430249580,5.65989478,112040.0,112030.0,0.00065802]
[1756430249786,5.7014905,112040.0,112030.0,0.00065802]
[1756430250051,5.7065005,112040.0,112030.0,0.00065802]
[1756430250253,5.79467682,112040.0,112030.0,0.00065802]
[1756430250462,5.0283016,112040.0,112030.0,0.00065802]
[1756430250640,5.79463682,112040.0,112030.0,0.00065802]
[1756430251055,5.32014289,112040.0,112030.0,0.18114162]
[1756430251257,5.35178417,112040.0,112030.0,0.18114162]
[1756430251439,5.71861257,112040.0,112030.0,0.18114162]
[1756430251642,5.73508552,112040.0,112030.0,0.18114162]
[1756430251846,5.73508552,112040.0,112030.0,0.17918162]
[1756430252028,5.73508552,112040.0,112030.0,0.00261802]
[1756430252233,5.69726825,112040.0,112030.0,0.18114162]
[1756430252452,5.70344444,112040.0,112030.0,0.18114162]
[1756430252840,5.79174076,112040.0,112030.0,0.18114162]
[1756430253966,4.86118554,112040.0,112030.0,0.18114162]
[1756430254143,5.28106745,112040.0,112030.0,0.18424162]
[1756430254347,5.28930405,112040.0,112030.0,0.18424162]
[1756430254697,5.12726405,112040.0,112030.0,0.18424162]
[1756430254903,5.5734445,112040.0,112030.0,0.18424162]
[1756430255624,5.19027689,112040.0,112030.0,0.18424162]
[1756430255964,5.5734445,112040.0,112030.0,0.18424162]
[1756430256406,5.5816911,112040.0,112030.0,0.18424162]
[1756430256976,0.9749191,112040.0,112030.0,0.18424162]
[1756430257294,1.02238205,112040.0,112030.0,0.18424162]
[1756430258099,0.47753444,112040.0,112030.0,0.18424162]
[1756430258356,0.9749191,112040.0,112030.0,0.18424162]
[1756430259296,0.9749191,112040.0,112030.0,0.31241334]
[1756430259297,0.10529609,112040.0,112030.0,0.31241334]
[1756430259505,0.09704949,112040.0,112030.0,0.47389334]
[1756430259711,0.06539887,112040.0,112030.0,0.43401794]
[1756430260250,0.04160966,112040.0,112030.0,0.43401794]
[1756430260850,0.04160966,112040.0,112030.0,0.45495676]
[1756430261795,0.03543347,112040.0,112030.0,0.45495676]
[1756430262003,0.04163088,112040.0,112030.0,0.45495676]
[1756430262213,0.04163088,112040.0,112030.0,0.54325308]
[1756430262388,0.02516176,112040.0,112030.0,0.92742069]
[1756430262588,0.00619741,112040.0,112030.0,0.92842069]
[1756430262858,0.00619741,112040.0,112030.0,0.54525308]
[1756430263140,0.00619741,112040.0,112030.0,0.45595676]
[1756430263301,0.00619741,112040.0,112030.0,0.45695676]
[1756430263842,0.00619741,112040.0,112030.0,0.45995676]
[1756430264048,0.00619741,112040.0,112030.0,0.45959676]
[1756430264257,0.40695682,112060.0,112050.0,0.17849174]
[1756430264457,0.4569541,112060.0,112050.0,0.18355174]
[1756430265050,0.4589341,112060.0,112050.0,0.20728974]
[1756430265270,0.8019641,112060.0,112050.0,0.026838]
[1756430265492,0.8019641,112060.0,112050.0,0.17849174]
[1756430265493,0.83361284,112060.0,112050.0,0.17849174]
[1756430265701,0.34,112050.0,112040.0,0.026842]
[1756430265919,1.42281697,112050.0,112030.0,0.1911078]
[1756430266123,0.79512414,112040.0,112030.0,0.1911078]
[1756430266326,0.79512414,112040.0,112030.0,0.2179528]
[1756430266327,0.45369576,112040.0,112030.0,0.2179528]
[1756430266534,0.45369576,112040.0,112030.0,0.2149528]
[1756430266738,0.56823618,112040.0,112030.0,0.1881078]
[1756430266941,0.83365651,112040.0,112030.0,0.1881078]
[1756430267532,0.86310747,112040.0,112030.0,0.1881078]
[1756430268092,0.83365651,112040.0,112030.0,0.1881078]
[1756430268978,0.80195098,112040.0,112030.0,0.1881078]
[1756430269265,0.79892098,112040.0,112030.0,0.1902378]
[1756430271368,0.8904073,112040.0,112030.0,0.1881078]
[1756430271548,1.27357491,112040.0,112030.0,0.17918162]
[1756430271734,5.91185244,112040.0,112030.0,0.00065802]
[1756430271944,5.88807352,112040.0,112030.0,0.00065802]
[1756430272286,5.87982917,112040.0,112030.0,0.00065802]
[1756430272478,5.90928013,112040.0,112030.0,0.00065802]
[1756430273101,5.90928051,112040.0,112030.0,0.00065802]
[1756430274329,5.93307591,112040.0,112030.0,0.00065802]
[1756430275321,5.16674069,112040.0,112030.0,0.17918162]
[1756430275535,5.95264466,112040.0,112030.0,0.17918162]
[1756430278271,5.93612064,112040.0,112030.0,0.17918162]
[1756430279436,5.14599002,112040.0,112030.0,0.17918162]
[1756430279648,5.91232524,112040.0,112030.0,0.17918162]
[1756430279874,5.9417762,112040.0,112030.0,0.17918162]
[1756430280046,6.03007252,112040.0,112030.0,0.17918162]
[1756430280284,6.00062156,112040.0,112030.0,0.17918162]
[1756430280495,5.2637373,112040.0,112030.0,0.17918162]
[1756430280710,5.52875763,112040.0,112030.0,0.17918162]
[1756430280928,5.36839763,112040.0,112030.0,0.17918162]
[1756430281063,5.91192524,112040.0,112030.0,0.37918162]
[1756430281679,5.75156737,112040.0,112030.0,0.37918162]
[1756430281893,5.14240215,112040.0,112030.0,0.38131162]
[1756430282121,5.52556976,112040.0,112030.0,0.38443162]
[1756430282567,5.52556976,112040.0,112030.0,0.38131162]
[1756430282793,5.61386608,112040.0,112030.0,0.38131162]
[1756430283013,5.61705608,112040.0,112030.0,0.37918162]
[1756430283195,6.00022369,112040.0,112030.0,0.37918162]
[1756430283671,6.00022369,112040.0,112030.0,0.20065802]
[1756430283878,6.04520687,112040.0,112030.0,0.37918162]
[1756430284154,5.86931814,112040.0,112030.0,0.37918162]
[1756430284351,5.52553325,112040.0,112030.0,0.38131162]
[1756430284712,5.55810042,112040.0,112030.0,0.37918162]
[1756430284951,5.94126803,112040.0,112030.0,0.37918162]
[1756430285851,5.91181086,112040.0,112030.0,0.37918162]
[1756430286339,5.94115181,112040.0,112030.0,0.37918162]
[1756430286763,6.02944813,112040.0,112030.0,0.37918162]
[1756430287296,6.02944813,112040.0,112030.0,0.40602862]
[1756430288536,6.02944813,112040.0,112030.0,0.22750502]
[1756430288757,6.00010718,112040.0,112030.0,0.22750502]
[1756430288952,6.02944813,112040.0,112030.0,0.22750502]
[1756430289164,6.02974607,112040.0,112030.0,0.22750502]
[1756430289395,6.02974607,112040.0,112030.0,0.20065802]
[1756430289935,6.05758054,112040.0,112030.0,0.20065802]
[1756430290569,6.08137594,112040.0,112030.0,0.20065802]
[1756430290790,6.10231476,112040.0,112030.0,0.20065802]
[1756430291559,6.10195476,112040.0,112030.0,0.20065802]
[1756430291816,6.10191476,112040.0,112030.0,0.20065802]
[1756430292175,6.10191631,112040.0,112030.0,0.20065802]
[1756430292319,6.10391631,112040.0,112030.0,0.20065802]
[1756430292537,6.10391698,112040.0,112030.0,0.20065802]
[1756430292720,6.10391692,112040.0,112030.0,0.20065802]
[1756430292928,5.94715692,112040.0,112030.0,0.20065802]
[1756430293108,6.10691692,112040.0,112030.0,0.20065802]
[1756430293311,6.14697653,112040.0,112030.0,0.20065802]
[1756430294405,6.20234961,112040.0,112030.0,0.20065802]
[1756430295215,6.17064408,112040.0,112030.0,0.20065802]
[1756430295432,6.20221371,112040.0,112030.0,0.20065802]
[1756430296498,6.04265371,112040.0,112030.0,0.20065802]
[1756430296707,6.20205371,112040.0,112030.0,0.20065802]
[1756430296918,6.1934891,112040.0,112030.0,0.20065802]
[1756430297117,5.78244702,112040.0,112030.0,0.20065802]
[1756430297362,6.16561463,112040.0,112030.0,0.20065802]
[1756430298273,6.16565463,112040.0,112030.0,0.20065802]
[1756430298467,6.11819168,112040.0,112030.0,0.20065802]
[1756430298908,6.1181945,112040.0,112030.0,0.20065802]
[1756430299113,6.06266473,112040.0,112030.0,0.38119162]
[1756430299336,6.06266473,112040.0,112030.0,0.20065802]
[1756430299337,6.1602296,112040.0,112030.0,0.20065802]
[1756430299762,6.1602296,112040.0,112030.0,0.00065802]
[1756430300228,6.0009096,112040.0,112030.0,0.00065802]
[1756430300459,5.99576225,112040.0,112030.0,0.18423162]
[1756430300661,6.15714225,112040.0,112030.0,0.00570802]
[1756430300835,6.15714225,112040.0,112030.0,0.00266802]
[1756430301036,6.16015225,112040.0,112030.0,0.00065802]
[1756430301181,6.16015225,112040.0,112030.0,0.00266802]
[1756430301412,6.16007225,112040.0,112030.0,0.18119162]
[1756430301618,6.16007225,112040.0,112030.0,0.00266802]
[1756430301890,6.16007225,112040.0,112030.0,0.00065802]
[1756430302215,6.16863686,112040.0,112030.0,0.00065802]
[1756430302435,6.16864046,112040.0,112030.0,0.00065802]
[1756430304174,6.19359667,112040.0,112030.0,0.00065802]
[1756430305727,6.16977915,112040.0,112030.0,0.00065802]
[1756430308379,6.18632845,112040.0,112030.0,0.00065802]
[1756430309747,6.23510174,112040.0,112030.0,0.00065802]
[1756430310050,6.28256469,112040.0,112030.0,0.00065802]
[1756430311786,6.42930273,112040.0,112030.0,0.00065802]
[1756430311992,6.42141543,112040.0,112030.0,0.00065802]
[1756430312173,6.46907337,112040.0,112030.0,0.00065802]
[1756430312405,6.80458304,112040.0,112030.0,0.00065802]
[1756430312606,6.80458304,112040.0,112020.0,0.0002]
[1756430312607,0.34,112030.0,112020.0,0.0002]
[1756430312825,6.17401453,112030.0,112020.0,0.0002]
[1756430313029,6.17615453,112030.0,112020.0,0.0002]
[1756430313217,6.17916453,112030.0,112020.0,0.0002]
[1756430313462,6.13151403,112030.0,112020.0,0.0002]
[1756430313611,6.13978562,112030.0,112020.0,0.0002]
[1756430314042,5.96148515,112030.0,112020.0,0.0002]
[1756430314430,5.96448515,112030.0,112020.0,0.0002]
[1756430314869,6.14300875,112030.0,112020.0,0.0002]
[1756430315481,5.97845805,112030.0,112020.0,0.0002]
[1756430315688,5.43509044,112030.0,112020.0,0.0002]
[1756430315890,5.59713044,112030.0,112020.0,0.0002]
[1756430316068,5.59712686,112030.0,112020.0,0.0002]
[1756430316827,5.98029447,112030.0,112020.0,0.0002]
[1756430320448,5.98032109,112030.0,112020.0,0.0002]
[1756430320846,6.15884469,112030.0,112020.0,0.0002]
[1756430321067,5.98032109,112030.0,112020.0,0.0002]
[1756430321238,6.15884469,112030.0,112020.0,0.0002]
[1756430321439,6.22258079,112030.0,112020.0,0.0002]
[1756430321810,6.04405719,112030.0,112020.0,0.0002]
[1756430322361,6.22258079,112030.0,112020.0,0.0002]
[1756430322684,6.20603261,112030.0,112020.0,0.0002]
[1756430322923,6.04404936,112030.0,112020.0,0.0002]
[1756430323127,6.13812048,112030.0,112020.0,0.0002]
[1756430323324,6.22257408,112030.0,112020.0,0.0002]
[1756430323650,6.04405048,112030.0,112020.0,0.0002]
[1756430324400,6.15883798,112030.0,112020.0,0.0002]
[1756430325182,5.98031438,112030.0,112020.0,0.0002]
[1756430325811,5.86791481,112030.0,112020.0,0.0002]
[1756430326014,5.97967438,112030.0,112020.0,0.00221]
[1756430326175,5.97967438,112030.0,112020.0,0.0002]
[1756430326585,6.02731357,112030.0,112020.0,0.0002]
[1756430326795,5.86791357,112030.0,112020.0,0.0002]
[1756430326978,6.02418357,112030.0,112020.0,0.00221]
[1756430327192,5.26085835,112030.0,112020.0,0.00221]
[1756430327407,6.01322067,112030.0,112020.0,0.0002]
[1756430327819,6.19174427,112030.0,112020.0,0.0002]
[1756430328046,6.01322067,112030.0,112020.0,0.0002]
[1756430328495,5.96558148,112030.0,112020.0,0.0002]
[1756430328711,6.01323368,112030.0,112020.0,0.0002]
[1756430331052,6.01323368,112030.0,112020.0,0.0022]
[1756430331255,5.85395368,112030.0,112020.0,0.0022]
[1756430331486,6.01323368,112030.0,112020.0,0.0002]
[1756430332547,6.01022368,112030.0,112020.0,0.0022]
[1756430332999,5.60044891,112030.0,112020.0,0.00521]
[1756430333344,5.6004808,112030.0,112020.0,0.00521]
[1756430333552,5.59403619,112030.0,112020.0,0.0002]
[1756430333758,5.59697619,112030.0,112020.0,0.0002]
[1756430333997,5.59403622,112030.0,112020.0,0.0022]
[1756430334236,5.5919171,112030.0,112020.0,0.0022]
[1756430334414,5.68021342,112030.0,112020.0,0.00521]
[1756430335029,5.55272957,112030.0,112020.0,0.00521]
[1756430335240,5.71176957,112030.0,112020.0,0.00521]
[1756430335388,5.67997342,112030.0,112020.0,0.00521]
[1756430336827,5.6320476,112030.0,112020.0,0.00521]
[1756430337028,5.4730076,112030.0,112020.0,0.18374954]
[1756430337266,5.10921145,112030.0,112020.0,0.18374954]
[1756430337455,5.57636556,112030.0,112020.0,0.18374954]
[1756430337653,5.57636556,112030.0,112020.0,0.21059954]
[1756430338098,5.66466188,112030.0,112020.0,0.21059954]
[1756430338299,5.1766406,112030.0,112020.0,0.21059954]
[1756430338567,5.55980821,112030.0,112020.0,0.21059954]
[1756430339334,5.55680821,112030.0,112020.0,0.21059954]
[1756430339538,5.5482436,112030.0,112020.0,0.21059954]
[1756430339979,5.5462436,112030.0,112020.0,0.21059954]
[1756430340206,5.16307599,112030.0,112020.0,0.21059954]
[1756430340406,5.61052387,112030.0,112020.0,0.21059954]
[1756430340609,5.52222755,112030.0,112020.0,0.21059954]
[1756430340815,4.98025994,112030.0,112020.0,0.21059954]
[1756430341026,5.18234755,112030.0,112020.0,0.21059954]
[1756430341195,5.52235406,112030.0,112020.0,0.21059954]
[1756430341400,5.61065038,112030.0,112020.0,0.21059954]
[1756430342360,5.27994506,112030.0,112020.0,0.03005]
[1756430342566,5.26866895,112030.0,112020.0,0.21159954]
[1756430342700,5.2748782,112030.0,112020.0,0.21259954]
[1756430343306,5.2748782,112030.0,112020.0,0.21159954]
[1756430343516,5.2749982,112030.0,112020.0,0.21159954]
[1756430343721,5.2749982,112030.0,112020.0,0.21059954]
[1756430344359,4.89183059,112030.0,112020.0,0.21059954]
[1756430344570,5.2749982,112030.0,112020.0,0.21059954]
[1756430344822,5.2771182,112030.0,112020.0,0.20758954]
[1756430345041,5.2749982,112030.0,112020.0,0.21059954]
[1756430345675,5.20425452,112030.0,112020.0,0.21059954]
[1756430345882,5.36329452,112030.0,112020.0,0.21059954]
[1756430346067,5.1159582,112030.0,112020.0,0.21059954]
[1756430346286,5.2749982,112030.0,112020.0,0.21059954]
[1756430346911,5.2771182,112030.0,112020.0,0.20758954]
[1756430347536,4.89395059,112030.0,112020.0,0.21059954]
[1756430347784,5.2749982,112030.0,112020.0,0.21059954]
[1756430347983,5.2771182,112030.0,112020.0,0.21059954]
[1756430348184,5.2771182,112030.0,112020.0,0.20758954]
[1756430348389,5.2771182,112030.0,112020.0,0.21059954]
[1756430348611,5.2749982,112030.0,112020.0,0.21059954]
[1756430349024,5.36835452,112030.0,112020.0,0.02705]
[1756430349224,5.36835452,112030.0,112020.0,0.20558954]
[1756430349469,5.36541452,112030.0,112020.0,0.20758954]
[1756430349996,5.36835452,112030.0,112020.0,0.20758954]
[1756430350198,5.2771182,112030.0,112020.0,0.20758954]
[1756430350794,5.2800582,112030.0,112020.0,0.20558954]
[1756430351213,5.2800582,112030.0,112020.0,0.20758954]
[1756430351453,5.2771182,112030.0,112020.0,0.20758954]
[1756430351873,5.2800582,112030.0,112020.0,0.02705]
[1756430352083,5.36835452,112030.0,112020.0,0.02705]
[1756430352285,5.2800582,112030.0,112020.0,0.02705]
[1756430353011,5.28004875,112030.0,112020.0,0.02705]
[1756430353244,5.28004875,112030.0,112020.0,0.20558954]
[1756430353415,5.29659705,112030.0,112020.0,0.20558954]
[1756430353980,5.29659705,112030.0,112020.0,0.02705]
[1756430354615,5.38489337,112030.0,112020.0,0.02705]
[1756430355409,5.38489337,112030.0,112020.0,0.20558954]
[1756430355821,5.38489337,112030.0,112020.0,0.02705]
[1756430356261,5.22585337,112030.0,112020.0,0.20558954]
[1756430356465,5.22585337,112030.0,112020.0,0.02705]
[1756430356466,5.38441337,112030.0,112020.0,0.02705]
[1756430356847,5.38441337,112030.0,112020.0,0.20558954]
[1756430358686,5.29611705,112030.0,112020.0,0.20558954]
[1756430359644,5.29579705,112030.0,112020.0,0.20558954]
[1756430359844,5.29579705,112030.0,112020.0,0.02705]
[1756430360114,5.29579705,112030.0,112020.0,0.20558954]
[1756430360532,5.3196531,112030.0,112020.0,0.20558954]
[1756430360708,5.40794942,112030.0,112020.0,0.20558954]
[1756430362070,5.24970942,112030.0,112020.0,0.20558954]
[1756430362269,5.40786942,112030.0,112020.0,0.20558954]
[1756430363243,5.40791746,112030.0,112020.0,0.20558954]
[1756430363453,5.40791746,112030.0,112020.0,0.02705]
[1756430364082,5.43971878,112030.0,112020.0,0.02705]
[1756430364292,5.41586273,112030.0,112020.0,0.02705]
[1756430365185,5.41586273,112030.0,112020.0,0.0002]
[1756430365299,5.86762136,112030.0,112020.0,0.0002]
[1756430365503,5.45264786,112030.0,112020.0,0.0002]
[1756430366462,5.45364786,112030.0,112020.0,0.0002]
[1756430366947,5.83681547,112030.0,112020.0,0.0002]
[1756430367672,5.86644836,112030.0,112020.0,0.0002]
[1756430367906,6.08089051,112030.0,112020.0,0.0002]
[1756430368135,6.01664888,112030.0,112020.0,0.0002]
[1756430368370,6.01664888,112030.0,112010.0,0.0002]
[1756430368371,1.16180258,112020.0,112010.0,0.0002]
[1756430368596,5.73559965,112020.0,112010.0,0.0002]
[1756430368848,5.78830135,112020.0,112010.0,0.0002]
[1756430369264,5.74065965,112020.0,112010.0,0.0002]
[1756430369827,5.74365965,112020.0,112010.0,0.0002]
[1756430370438,5.79125333,112020.0,112010.0,0.0002]
[1756430371014,6.00593333,112020.0,112010.0,0.0002]
[1756430371223,6.23447287,112020.0,112010.0,0.0002]
[1756430371475,6.23435287,112020.0,112010.0,0.0002]
[1756430371695,6.25032839,112020.0,112010.0,0.0002]
[1756430371906,6.22904865,112020.0,112010.0,0.0002]
[1756430373593,6.07124865,112020.0,112010.0,0.0002]
[1756430373806,6.22888525,112020.0,112010.0,0.0002]
[1756430373936,5.97391177,112020.0,112010.0,0.0002]
[1756430374162,6.02145253,112020.0,112010.0,0.0002]
[1756430374364,6.02145295,112020.0,112010.0,0.0002]
[1756430374564,5.99669479,112020.0,112010.0,0.0002]
[1756430374790,5.86380903,112020.0,112010.0,0.0002]
[1756430374995,6.02140903,112020.0,112010.0,0.0002]
[1756430375856,5.86380903,112020.0,112010.0,0.0002]
[1756430376054,6.04991448,112020.0,112010.0,0.00229]
[1756430376300,6.05298448,112020.0,112010.0,0.0002]
[1756430377419,6.19982857,112020.0,112010.0,0.0002]
[1756430377660,6.24982857,112020.0,112010.0,0.0002]
[1756430379158,0.02093882,112010.0,112000.0,0.01745193]
[1756430379377,5.72509573,112010.0,112000.0,0.01954193]
[1756430379577,5.90155194,112010.0,112000.0,0.01954193]
[1756430379834,5.7903268,112010.0,112000.0,0.02259193]
[1756430380467,5.7913268,112010.0,112000.0,0.02259193]
[1756430380809,5.79133493,112010.0,112000.0,0.02259193]
[1756430381870,5.79332493,112010.0,112000.0,0.01954193]
[1756430382078,5.79312493,112010.0,112000.0,0.01954193]
[1756430382310,5.88342125,112010.0,112000.0,0.01745193]
[1756430382481,5.92326932,112010.0,112000.0,0.01745193]
[1756430382683,5.79470695,112010.0,112000.0,0.01954193]
[1756430382921,5.90432619,112010.0,112000.0,0.01954193]
[1756430383130,5.95186695,112010.0,112000.0,0.01954193]
[1756430383334,5.95493695,112010.0,112000.0,0.01745193]
[1756430383688,5.95493695,112010.0,112000.0,0.01154598]
[1756430384325,5.93843619,112010.0,112000.0,0.01154598]
[1756430384483,5.95495168,112010.0,112000.0,0.01154598]
[1756430384921,5.95188188,112010.0,112000.0,0.01363598]
[1756430385231,5.95495188,112010.0,112000.0,0.01154598]
[1756430385378,5.99570096,112010.0,112000.0,0.01154598]
[1756430385578,5.96398631,112010.0,112000.0,0.01154598]
[1756430389189,5.96398631,112010.0,112000.0,0.00282166]
[1756430391362,5.96399793,112010.0,112000.0,0.00282166]
[1756430391512,5.95543332,112010.0,112000.0,0.00282166]
[1756430391721,6.14255341,112010.0,112000.0,0.00282166]
[1756430391927,6.00629105,112010.0,111980.0,0.029907]
[1756430392225,0.77874629,111990.0,111980.0,0.029907]
[1756430392395,5.36299603,111990.0,111980.0,0.029907]
[1756430392605,5.36299603,111990.0,111980.0,0.00507]
[1756430392812,5.20643603,111990.0,111980.0,0.00507]
[1756430393098,5.36299603,111990.0,111980.0,0.00507]
[1756430393527,5.36312377,111990.0,111980.0,0.00507]
[1756430393917,5.41290264,111990.0,111980.0,0.00507]
[1756430394274,5.41290264,111990.0,111980.0,0.00607]
[1756430394707,5.40670914,111990.0,111980.0,0.00607]
[1756430394882,5.41298456,111990.0,111980.0,0.00607]
[1756430395275,5.39641908,111990.0,111980.0,0.00607]
[1756430395477,5.38123128,111990.0,111980.0,0.00607]
[1756430395678,5.3812363,111990.0,111980.0,0.00302]
[1756430396320,5.3842463,111990.0,111980.0,0.001]
[1756430396498,5.39281091,111990.0,111980.0,0.001]
[1756430396678,5.34513204,111990.0,111980.0,0.001]
[1756430397383,5.40865198,111990.0,111980.0,0.001]
[1756430397586,5.40865198,111990.0,111970.0,0.03508]
[1756430397806,5.02480816,111980.0,111970.0,0.03816]
[1756430398061,5.16323195,111980.0,111970.0,0.03816]
[1756430398268,5.54853956,111980.0,111970.0,0.03508]
[1756430398469,5.89154956,111980.0,111970.0,0.03508]
[1756430398706,5.84379121,111980.0,111970.0,0.03508]
[1756430399025,5.07745599,111980.0,111970.0,0.02926264]
[1756430399342,5.90731115,111980.0,111970.0,0.00890155]
[1756430399552,4.98445593,111980.0,111970.0,0.00890155]
[1756430399761,5.90835115,111980.0,111970.0,0.00890155]
[1756430400448,5.52518354,111980.0,111970.0,0.00890155]
[1756430400653,0.34,111970.0,111950.0,0.00427016]
[1756430400862,0.25633708,111960.0,111950.0,0.00119016]
[1756430401069,5.04873516,111960.0,111950.0,0.00119016]
[1756430401272,5.38419338,111960.0,111950.0,0.00321016]
[1756430401474,4.95797816,111960.0,111950.0,0.00629016]
[1756430401765,4.77547862,111960.0,111950.0,0.18494134]
[1756430401963,5.22553982,111960.0,111950.0,0.00629016]
[1756430402294,4.84237221,111960.0,111950.0,0.18494134]
[1756430402593,5.22553982,111960.0,111950.0,0.00629016]
[1756430403013,5.25705896,111960.0,111950.0,0.00729016]
[1756430403213,4.87389135,111960.0,111950.0,0.18794134]
[1756430403423,5.25705896,111960.0,111950.0,0.18794134]
[1756430403959,5.25699927,111960.0,111950.0,0.18794134]
[1756430404232,5.25699927,111960.0,111950.0,0.00929016]
[1756430404433,5.25699927,111960.0,111950.0,0.18794134]
[1756430404780,4.87418928,111960.0,111950.0,0.18794134]
[1756430404985,5.25735078,111960.0,111950.0,0.18794134]
[1756430405188,4.87418317,111960.0,111950.0,0.18794134]
[1756430405387,5.25735078,111960.0,111950.0,0.18794134]
[1756430405640,5.26585078,111960.0,111950.0,0.18794134]
[1756430405858,5.10745078,111960.0,111950.0,0.18794134]
[1756430406069,0.02480243,111960.0,111950.0,0.62190773]
[1756430406275,0.02480243,111960.0,111950.0,0.23874012]
[1756430406598,0.02480243,111960.0,111950.0,0.20888016]
[1756430407206,0.40797004,111960.0,111950.0,0.18794134]
[1756430407412,0.41417025,111960.0,111950.0,0.18794134]
[1756430407643,0.41417025,111960.0,111950.0,0.00929016]
[1756430407847,5.52020418,111960.0,111950.0,0.00419016]
[1756430408045,4.77469991,111960.0,111950.0,0.00621016]
[1756430408301,0.10872822,111950.0,111940.0,0.20573414]
[1756430408447,4.96459826,111950.0,111940.0,0.20775414]
[1756430408649,0.67517826,111950.0,111940.0,0.20775414]
[1756430408882,0.23971065,111950.0,111940.0,0.21083414]
[1756430409075,0.62907743,111950.0,111940.0,0.032167]
[1756430409281,0.62287826,111950.0,111940.0,0.21083414]
[1756430409485,0.57057826,111950.0,111940.0,0.21083414]
[1756430409735,0.57072124,111950.0,111940.0,0.21583414]
[1756430409935,0.57691991,111950.0,111940.0,0.21583414]
[1756430410384,0.57072124,111950.0,111940.0,0.21583414]
[1756430410561,0.51842124,111950.0,111940.0,0.21583414]
[1756430410724,0.52461937,111950.0,111940.0,0.21583414]
[1756430411522,0.14145176,111950.0,111940.0,0.21275414]
[1756430411717,0.52461937,111950.0,111940.0,0.21583414]
[1756430411922,0.14145176,111950.0,111940.0,0.21583414]
[1756430412133,4.87001964,111950.0,111940.0,0.0052]
[1756430412351,4.79923032,111950.0,111940.0,0.0052]
[1756430412990,4.86795032,111950.0,111940.0,0.0052]
[1756430413606,5.20795032,111950.0,111940.0,0.0052]
[1756430414117,5.20313924,111950.0,111940.0,0.0002]
[1756430414318,5.43349577,111950.0,111940.0,0.0002]
[1756430414525,5.52179209,111950.0,111940.0,0.0002]
[1756430414721,5.97589852,111950.0,111940.0,0.0002]
[1756430414896,5.54502152,111950.0,111940.0,0.0002]
[1756430415091,5.58430039,111950.0,111940.0,0.0002]
[1756430415296,5.9674602,111950.0,111940.0,0.0002]